fUSD/lending_fUSD_20241222
["ID","MTS","AMOUNT","RATE_DAILY","PERIOD"]
[346306155,1734882640754,-500.0,0.00019178,2]
[346306156,1734882640764,-500.0,0.00019178,2]
[346306158,1734882640773,-500.0,0.00019178,2]
[346306160,1734882640782,-500.0,0.00019178,2]
[346306163,1734882640791,-500.0,0.00019178,2]
[346306165,1734882640800,-151.44135713,0.00019178,2]
[346306167,1734882640810,-500.0,0.00019178,2]
[346306169,1734882640820,-500.0,0.00019178,2]
[346306171,1734882640829,-500.0,0.00019178,2]
[346306173,1734882640839,-500.0,0.00019178,2]
[346306175,1734882640848,-500.0,0.00019178,2]
[346306176,1734882640857,-500.0,0.00019178,2]
[346306179,1734882640867,-500.0,0.00019178,2]
[346306181,1734882640876,-500.0,0.00019178,2]
[346306183,1734882640885,-500.0,0.00019178,2]
[346306185,1734882640894,-500.0,0.00019178,2]
[346306187,1734882640905,-500.0,0.00019178,2]
[346306189,1734882640915,-500.0,0.00019178,2]
[346306191,1734882640924,-500.0,0.00019178,2]
[346306192,1734882640933,-500.0,0.00019178,2]
[346306194,1734882640942,-500.0,0.00019178,2]
[346306196,1734882640951,-500.0,0.00019178,2]
[346306198,1734882640960,-500.0,0.00019178,2]
[346306200,1734882640969,-1888.75,0.00019178,2]
[346306202,1734882640978,-500.0,0.00019178,2]
[346306204,1734882640987,-507.72269143,0.00019178,2]
[346306206,1734882640996,-500.0,0.00019178,2]
[346306208,1734882641005,-500.0,0.00019178,2]
[346306210,1734882641014,-500.0,0.00019178,2]
[346306212,1734882641024,-500.0,0.00019178,2]
[346306214,1734882641033,-500.0,0.00019178,2]
[346306216,1734882641042,-2606.18,0.00019178,2]
[346306218,1734882641051,-799.1,0.00019178,2]
[346306220,1734882641062,-500.0,0.00019178,2]
[346306222,1734882641071,-500.0,0.00019178,2]
[346306225,1734882641081,-1980.69,0.00019178,2]
[346306227,1734882641090,-500.0,0.00019178,2]
[346306228,1734882641100,-500.0,0.00019178,2]
[346306230,1734882641111,-500.0,0.00019178,2]
[346306233,1734882641122,-500.0,0.00019178,2]
[346306235,1734882641132,-587.86,0.00019178,2]
[346306237,1734882641141,-500.0,0.00019178,2]
[346306239,1734882641153,-11505.27,0.00019178,2]
[346306241,1734882641162,-174.31,0.00019178,2]
[346306243,1734882641171,-571.35,0.00019178,2]
[346306245,1734882641181,-854.23,0.00019178,2]
[346306247,1734882641191,-500.0,0.00019178,2]
[346306249,1734882641200,-1134.72,0.00019178,2]
[346306251,1734882641210,-500.0,0.00019178,2]
[346306253,1734882641218,-500.0,0.00019178,2]
[346306255,1734882641228,-571.12,0.00019178,2]
[346306256,1734882641246,-979.98,0.00019178,2]
[346306258,1734882641255,-500.0,0.00019178,2]
[346306260,1734882641265,-500.0,0.00019178,2]
[346306263,1734882641274,-500.0,0.00019178,2]
[346306265,1734882641301,-500.0,0.00019178,2]
[346306267,1734882641312,-1000.0,0.00019178,2]
[346306269,1734882641321,-1056.2,0.00019178,2]
[346306271,1734882641332,-2730.53,0.00019178,2]
[346306272,1734882641341,-1282.97,0.00019178,2]
[346306275,1734882641350,-500.0,0.00019178,2]
[346306276,1734882641359,-500.0,0.00019178,2]
[346306278,1734882641368,-617.69,0.00019178,2]
[346306280,1734882641378,-890.57,0.00019178,2]
[346306282,1734882641387,-500.0,0.00019178,2]
[346306285,1734882641396,-2487.57,0.00019178,2]
[346306287,1734882641406,-635.51,0.00019178,2]
[346306288,1734882641415,-500.0,0.00019178,2]
[346306290,1734882641424,-515.08,0.00019178,2]
[346306292,1734882641435,-3077.0,0.00019178,2]
[346306294,1734882641444,-500.0,0.00019178,2]
[346306296,1734882641453,-738.32,0.00019178,2]
[346306298,1734882641462,-503.61625004,0.00019178,2]
[346306300,1734882641471,-500.0,0.00019178,2]
[346306302,1734882641480,-745.08,0.00019178,2]
[346306304,1734882641490,-500.0,0.00019178,2]
[346306306,1734882641499,-500.0,0.00019178,2]
[346306308,1734882641508,-592.38,0.00019178,2]
[346306310,1734882641517,-500.0,0.00019178,2]
[346306312,1734882641526,-1867.07,0.00019178,2]
[346306314,1734882641535,-500.0,0.00019178,2]
[346306316,1734882641544,-500.0,0.00019178,2]
[346306318,1734882641554,-5506.12,0.00019178,2]
[346306321,1734882641564,-500.0,0.00019178,2]
[346306323,1734882641573,-587.04,0.00019178,2]
[346306325,1734882641582,-500.0,0.00019178,2]
[346306327,1734882641591,-646.11,0.00019178,2]
[346306329,1734882641601,-14033.87,0.00019178,2]
[346306331,1734882641610,-500.0,0.00019178,2]
[346306333,1734882641619,-500.0,0.00019178,2]
[346306335,1734882641628,-591.67,0.00019178,2]
[346306337,1734882641637,-500.0,0.00019178,2]
[346306339,1734882641647,-1258.01,0.00019178,2]
[346306341,1734882641656,-500.0,0.00019178,2]
[346306343,1734882641666,-653.93,0.00019178,2]
[346306345,1734882641675,-5221.22,0.00019178,2]
[346306347,1734882641685,-500.0,0.00019178,2]
[346306348,1734882641695,-500.0,0.00019178,2]
[346306350,1734882641704,-8085.7,0.00019178,2]
[346306352,1734882641713,-760.09,0.00019178,2]
[346306354,1734882641722,-46379.84,0.00019178,2]
[346306356,1734882641731,-1378.49,0.00019178,2]
[346306358,1734882641740,-678.04,0.00019178,2]
[346306360,1734882641749,-500.0,0.00019178,2]
[346306362,1734882641759,-500.0,0.00019178,2]
[346306364,1734882641768,-500.0,0.00019178,2]
[346306366,1734882641777,-500.0,0.00019178,2]
[346306368,1734882641787,-712.94,0.00019178,2]
[346306370,1734882641795,-4066.18,0.00019178,2]
[346306372,1734882641805,-1278.71,0.00019178,2]
[346306374,1734882641815,-2379.86,0.00019178,2]
[346306376,1734882641824,-2379.86,0.00019178,2]
[346306378,1734882641833,-2379.86,0.00019178,2]
[346306380,1734882641842,-2379.86,0.00019178,2]
[346306382,1734882641852,-2379.86,0.00019178,2]
[346306384,1734882641861,-500.0,0.00019178,2]
[346306386,1734882641871,-2890.74,0.00019178,2]
[346306388,1734882641880,-874.23,0.00019178,2]
[346306390,1734882641890,-500.0,0.00019178,2]
[346306392,1734882641899,-500.0,0.00019178,2]
[346306394,1734882641909,-398.55644501,0.00019178,2]
[346306396,1734882641919,-5923.87,0.00019178,2]
[346306398,1734882641928,-1186.46,0.00019178,2]
[346306399,1734882641937,-1493.85,0.00019178,2]
[346306401,1734882641947,-1031.92,0.00019178,2]
[346306404,1734882641956,-500.0,0.00019178,2]
[346306406,1734882641966,-500.0,0.00019178,2]
[346306407,1734882641975,-8469.63,0.00019178,2]
[346306409,1734882641984,-633.9,0.00019178,2]
[346306411,1734882641993,-75754.11,0.00019178,2]
[346306413,1734882642002,-5442.95,0.00019178,2]
[346306415,1734882642012,-852.03,0.00019178,2]
[346306417,1734882642021,-573.44,0.00019178,2]
[346306419,1734882642030,-722.78,0.00019178,2]
[346306421,1734882642039,-2305.83,0.00019178,2]
[346306423,1734882642048,-500.0,0.00019178,2]
[346306425,1734882642057,-649.45,0.00019178,2]
[346306427,1734882642066,-500.0,0.00019178,2]
[346306429,1734882642075,-504.32102973,0.00019178,2]
[346306431,1734882642084,-500.0,0.00019178,2]
[346306433,1734882642094,-21897.76,0.00019178,2]
[346306435,1734882642103,-614.39,0.00019178,2]
[346306436,1734882642131,-500.0,0.00019178,2]
[346306438,1734882642151,-13534.81,0.00019178,2]
[346306440,1734882642162,-1053.75,0.00019178,2]
[346306442,1734882642171,-756.25,0.00019178,2]
[346306444,1734882642180,-2729.96,0.00019178,2]
[346306446,1734882642190,-1034.09,0.00019178,2]
[346306448,1734882642199,-3043.67,0.00019178,2]
[346306450,1734882642209,-500.0,0.00019178,2]
[346306452,1734882642218,-558.11476541,0.00019178,2]
[346306454,1734882642227,-560.8,0.00019178,2]
[346306456,1734882642236,-500.0,0.00019178,2]
[346306458,1734882642245,-8326.5,0.00019178,2]
[346306460,1734882642254,-6366.27,0.00019178,2]
[346306462,1734882642264,-718.4,0.00019178,2]
[346306464,1734882642274,-806.65,0.00019178,2]
[346306466,1734882642283,-500.0,0.00019178,2]
[346306469,1734882642292,-1342.83,0.00019178,2]
[346306472,1734882642302,-500.0,0.00019178,2]
[346306475,1734882642311,-5230.13,0.00019178,2]
[346306477,1734882642323,-500.0,0.00019178,2]
[346306479,1734882642332,-500.0,0.00019178,2]
[346306480,1734882642341,-500.0,0.00019178,2]
[346306482,1734882642350,-20409.72,0.00019178,2]
[346306485,1734882642359,-500.0,0.00019178,2]
[346306487,1734882642369,-993.52,0.00019178,2]
[346306489,1734882642379,-1389.87,0.00019178,2]
[346306491,1734882642388,-674.06,0.00019178,2]
[346306494,1734882642397,-2409.67,0.00019178,2]
[346306496,1734882642406,-3466.01,0.00019178,2]
[346306499,1734882642415,-1573.66,0.00019178,2]
[346306502,1734882642424,-593.07,0.00019178,2]
[346306505,1734882642433,-500.0,0.00019178,2]
[346306508,1734882642442,-500.0,0.00019178,2]
[346306511,1734882642451,-704.01,0.00019178,2]
[346306514,1734882642461,-7756.13,0.00019178,2]
[346306517,1734882642469,-500.0,0.00019178,2]
[346306520,1734882642479,-1922.61,0.00019178,2]
[346306523,1734882642488,-3988.68,0.00019178,2]
[346306527,1734882642497,-500.0,0.00019178,2]
[346306532,1734882642506,-1544.59,0.00019178,2]
[346306535,1734882642515,-500.0,0.00019178,2]
[346306539,1734882642525,-500.0,0.00019178,2]
[346306542,1734882642534,-500.0,0.00019178,2]
[346306545,1734882642543,-212.10886188,0.00019178,2]
[346306548,1734882642553,-713.2,0.00019178,2]
[346306551,1734882642563,-500.0,0.00019178,2]
[346306555,1734882642572,-27918.05,0.00019178,2]
[346306558,1734882642582,-1242.79,0.00019178,2]
[346306561,1734882642591,-9752.75,0.00019178,2]
[346306564,1734882642600,-500.0,0.00019178,2]
[346306567,1734882642610,-26380.88,0.00019178,2]
[346306570,1734882642619,-613.49,0.00019178,2]
[346306573,1734882642629,-500.0,0.00019178,2]
[346306576,1734882642638,-1503.36,0.00019178,2]
[346306579,1734882642647,-500.0,0.00019178,2]
[346306582,1734882642656,-500.0,0.00019178,2]
[346306585,1734882642665,-4866.94,0.00019178,2]
[346306588,1734882642674,-500.0,0.00019178,2]
[346306591,1734882642683,-1043.29,0.00019178,2]
[346306593,1734882642692,-500.0,0.00019178,2]
[346306595,1734882642701,-894.44,0.00019178,2]
[346306598,1734882642711,-1890.55,0.00019178,2]
[346306601,1734882642720,-788.97,0.00019178,2]
[346306604,1734882642728,-500.0,0.00019178,2]
[346306606,1734882642737,-1519.25,0.00019178,2]
[346306608,1734882642747,-516.63895657,0.00019178,2]
[346306611,1734882642756,-500.0,0.00019178,2]
[346306614,1734882642766,-1426.04,0.00019178,2]
[346306617,1734882642775,-500.0,0.00019178,2]
[346306621,1734882642785,-500.0,0.00019178,2]
[346306623,1734882642794,-500.0,0.00019178,2]
[346306625,1734882642803,-1000.0,0.00019178,2]
[346306628,1734882642813,-1000.0,0.00019178,2]
[346306631,1734882642823,-1000.0,0.00019178,2]
[346306634,1734882642832,-1000.0,0.00019178,2]
[346306637,1734882642840,-1000.0,0.00019178,2]
[346306639,1734882642849,-1000.0,0.00019178,2]
[346306641,1734882642859,-1000.0,0.00019178,2]
[346306643,1734882642868,-1000.0,0.00019178,2]
[346306645,1734882642877,-1000.0,0.00019178,2]
[346306647,1734882642886,-728.0,0.00019178,2]
[346306649,1734882642895,-2304.14,0.00019178,2]
[346306651,1734882642906,-4000.0,0.00019178,2]
[346306653,1734882642915,-214.35223594,0.00019179,2]
[346306655,1734882642925,-158.94184706,0.0001926,2]
[346306657,1734882642934,-3550.00005738,0.000193,2]
[346306659,1734882642945,-40390.082414,0.000193,2]
[346306661,1734882642954,-472.08,0.00019339,2]
[346306663,1734882642964,-85190.0,0.00019342,2]
[346306665,1734882642973,-118174.0,0.00019342,2]
[346306667,1734882642982,-163.05,0.00019347,2]
[346306669,1734882642991,-169.86594481,0.00019352,2]
[346306671,1734882643000,-169.86594481,0.00019352,2]
[346306673,1734882643009,-169.86,0.00019352,2]
[346306675,1734882643018,-173.59609625,0.0001937,4]
[346306677,1734882643027,-184.65485042,0.0001937,4]
[346306679,1734882643036,-261.26757161,0.0001937,4]
[346306681,1734882643045,-162.29978398,0.00019373,2]
[346306683,1734882643054,-583.53894794,0.00019373,2]
[346306685,1734882643064,-235.21062701,0.00019373,2]
[346306687,1734882643073,-165.48550035,0.00019373,2]
[346306689,1734882643082,-500.0,0.00019373,2]
[346306692,1734882643091,-500.0,0.00019373,2]
[346306694,1734882643101,-260.03028348,0.00019373,2]
[346306696,1734882643112,-509.23929976,0.00019373,2]
[346306698,1734882643121,-179.00644439,0.00019373,2]
[346306700,1734882643130,-159.75700703,0.00019373,2]
[346306701,1734882643139,-2379.86,0.00019379,2]
[346306703,1734882643149,-2379.86,0.00019379,2]
[346306704,1734882643158,-2379.86,0.00019379,2]
[346306706,1734882643167,-2379.86,0.00019379,2]
[346306708,1734882643176,-2379.86,0.00019379,2]
[346306725,1734882643186,-2379.86,0.00019379,2]
[346306728,1734882643339,-2379.86,0.00019379,2]
[346306730,1734882643348,-2379.86,0.00019379,2]
[346306732,1734882643358,-2379.86,0.00019379,2]
[346306734,1734882643367,-2379.86,0.00019379,2]
[346306736,1734882643376,-2379.86,0.00019379,2]
[346306738,1734882643385,-2379.86,0.00019379,2]
[346306740,1734882643394,-2379.86,0.00019379,2]
[346306742,1734882643403,-2379.86,0.00019379,2]
[346306744,1734882643413,-2379.86,0.00019379,2]
[346306746,1734882643422,-2379.86,0.00019379,2]
[346306748,1734882643431,-2379.86,0.00019379,2]
[346306750,1734882643440,-2379.86,0.00019379,2]
[346306752,1734882643450,-2379.89693025,0.00019379,2]
[346306754,1734882643459,-7281896.35102632,0.0001938,2]
[346306756,1734882643468,-250.0,0.000194,2]
[346306758,1734882643476,-250.0,0.000194,2]
[346306760,1734882643486,-250.0,0.000194,2]
[346306762,1734882643495,-250.0,0.000194,2]
[346306764,1734882643505,-250.0,0.000194,2]
[346306766,1734882643514,-250.0,0.000194,2]
[346306768,1734882643523,-250.0,0.000194,2]
[346306770,1734882643532,-250.0,0.000194,2]
[346306772,1734882643541,-250.0,0.000194,2]
[346306774,1734882643551,-250.0,0.000194,2]
[346306776,1734882643560,-250.0,0.000194,2]
[346306778,1734882643571,-250.0,0.000194,2]
[346306780,1734882643580,-250.0,0.000194,2]
[346306782,1734882643589,-250.0,0.000194,2]
[346306784,1734882643599,-250.0,0.000194,2]
[346306786,1734882643608,-250.0,0.000194,2]
[346306788,1734882643618,-250.0,0.000194,2]
[346306790,1734882643627,-250.0,0.000194,2]
[346306792,1734882643636,-250.0,0.000194,2]
[346306793,1734882643645,-250.0,0.000194,2]
[346306796,1734882643654,-250.0,0.000194,2]
[346306798,1734882643663,-250.0,0.000194,2]
[346306800,1734882643673,-250.0,0.000194,2]
[346306801,1734882643683,-250.0,0.000194,2]
[346306803,1734882643692,-250.0,0.000194,2]
[346306805,1734882643701,-250.0,0.000194,2]
[346306807,1734882643710,-250.0,0.000194,2]
[346306810,1734882643720,-250.0,0.000194,2]
[346306812,1734882643729,-250.0,0.000194,2]
[346306813,1734882643739,-250.0,0.000194,2]
[346306816,1734882643748,-250.0,0.000194,2]
[346306817,1734882643757,-250.0,0.000194,2]
[346306819,1734882643766,-250.0,0.000194,2]
[346306822,1734882643775,-250.0,0.000194,2]
[346306824,1734882643785,-250.0,0.000194,2]
[346306826,1734882643794,-250.0,0.000194,2]
[346306827,1734882643803,-502.7661372,0.00019442,2]
[346306830,1734882643813,-2153.93024475,0.00019443,2]
[346306831,1734882643823,-3682.12897678,0.00019443,2]
[346306834,1734882643832,-1731.47112422,0.00019443,2]
[346306836,1734882643841,-1731.47112422,0.00019446,2]
[346306838,1734882643852,-2153.93024475,0.00019448,2]
[346306840,1734882643862,-1508.298412,0.00019448,2]
[346306842,1734882643871,-502.7661372,0.0001945,2]
[346306843,1734882643880,-638.362625,0.00019452,2]
[346306844,1734882643889,-3145.470924,0.00019452,2]
[346306845,1734882643898,-591.45,0.00019452,2]
[346306846,1734882643910,-500.0,0.00019452,2]
[346306847,1734882643920,-500.0,0.00019452,2]
[346306848,1734882643929,-500.0,0.00019452,2]
[346306849,1734882643938,-500.0,0.00019452,2]
[346306850,1734882643947,-500.0,0.00019452,2]
[346306851,1734882643955,-651.89,0.00019452,2]
[346306852,1734882643964,-500.0,0.00019452,2]
[346306853,1734882643973,-500.0,0.00019452,2]
[346306854,1734882643982,-500.0,0.00019452,2]
[346306855,1734882643991,-500.0,0.00019452,2]
[346306856,1734882644001,-500.0,0.00019452,2]
[346306857,1734882644010,-500.0,0.00019452,2]
[346306858,1734882644019,-500.0,0.00019452,2]
[346306859,1734882644028,-500.0,0.00019452,2]
[346306861,1734882644037,-156.296692,0.00019452,2]
[346306862,1734882644046,-500.0,0.00019452,2]
[346306864,1734882644055,-500.0,0.00019452,2]
[346306866,1734882644064,-500.0,0.00019452,2]
[346306868,1734882644075,-500.0,0.00019452,2]
[346306870,1734882644084,-502.7,0.00019452,2]
[346306872,1734882644094,-500.0,0.00019452,2]
[346306874,1734882644107,-586.08,0.00019452,2]
[346306876,1734882644116,-500.0,0.00019452,2]
[346306878,1734882644125,-500.0,0.00019452,2]
[346306880,1734882644134,-500.0,0.00019452,2]
[346306882,1734882644143,-716.84,0.00019452,2]
[346306884,1734882644154,-824.23,0.00019452,2]
[346306886,1734882644163,-500.0,0.00019452,2]
[346306888,1734882644172,-500.0,0.00019452,2]
[346306890,1734882644182,-595.36,0.00019452,2]
[346306892,1734882644192,-500.0,0.00019452,2]
[346306894,1734882644201,-500.0,0.00019452,2]
[346306896,1734882644211,-500.0,0.00019452,2]
[346306898,1734882644220,-578.52,0.00019452,2]
[346306900,1734882644230,-500.0,0.00019452,2]
[346306902,1734882644239,-500.0,0.00019452,2]
[346306904,1734882644248,-511.85,0.00019452,2]
[346306906,1734882644257,-500.0,0.00019452,2]
[346306908,1734882644267,-500.0,0.00019452,2]
[346306910,1734882644277,-500.0,0.00019452,2]
[346306912,1734882644296,-500.0,0.00019452,2]
[346306915,1734882644306,-500.0,0.00019452,2]
[346306917,1734882644318,-500.0,0.00019452,2]
[346306918,1734882644327,-500.0,0.00019452,2]
[346306920,1734882644338,-881.76,0.00019452,2]
[346306923,1734882644347,-309.36407175,0.00019452,2]
[346306924,1734882644356,-500.0,0.00019452,2]
[346306926,1734882644365,-500.0,0.00019452,2]
[346306928,1734882644376,-570.72,0.00019452,2]
[346306930,1734882644385,-500.0,0.00019452,2]
[346306932,1734882644393,-343.08553569,0.00019452,2]
[346306934,1734882644403,-500.0,0.00019452,2]
[346306936,1734882644412,-500.0,0.00019452,2]
[346306938,1734882644421,-527.8686706,0.00019452,2]
[346306940,1734882644430,-500.0,0.00019452,2]
[346306942,1734882644439,-500.0,0.00019452,2]
[346306944,1734882644448,-500.0,0.00019452,2]
[346306946,1734882644457,-564.2,0.00019452,2]
[346306948,1734882644465,-540.17,0.00019452,2]
[346306950,1734882644474,-500.0,0.00019452,2]
[346306952,1734882644483,-500.0,0.00019452,2]
[346306954,1734882644492,-500.0,0.00019452,2]
[346306956,1734882644501,-500.0,0.00019452,2]
[346306958,1734882644510,-573.83,0.00019452,2]
[346306960,1734882644519,-500.0,0.00019452,2]
[346306962,1734882644528,-417.8688125,0.00019452,2]
[346306964,1734882644537,-500.0,0.00019452,2]
[346306966,1734882644546,-500.0,0.00019452,2]
[346306968,1734882644555,-500.0,0.00019452,2]
[346306970,1734882644564,-516.97010049,0.00019452,2]
[346306972,1734882644576,-500.0,0.00019452,2]
[346306974,1734882644590,-500.0,0.00019452,2]
[346306976,1734882644601,-921.35,0.00019452,2]
[346306978,1734882644611,-500.0,0.00019452,2]
[346306981,1734882644620,-500.0,0.00019452,2]
[346306982,1734882644630,-500.0,0.00019452,2]
[346306984,1734882644639,-500.0,0.00019452,2]
[346306987,1734882644648,-500.0,0.00019452,2]
[346306989,1734882644658,-500.0,0.00019452,2]
[346306990,1734882644667,-500.0,0.00019452,2]
[346306992,1734882644677,-500.0,0.00019452,2]
[346306995,1734882644686,-500.0,0.00019452,2]
[346306997,1734882644696,-500.0,0.00019452,2]
[346306999,1734882644705,-5177.1,0.00019452,2]
[346307001,1734882644715,-910.91,0.00019452,2]
[346307003,1734882644724,-500.0,0.00019452,2]
[346307005,1734882644733,-574.9,0.00019452,2]
[346307007,1734882644742,-383.85710765,0.00019452,2]
[346307009,1734882644752,-500.0,0.00019452,2]
[346307011,1734882644761,-500.0,0.00019452,2]
[346307013,1734882644771,-500.0,0.00019452,2]
[346307015,1734882644780,-533.9226078,0.00019452,2]
[346307017,1734882644789,-575.9,0.00019452,2]
[346307019,1734882644799,-637.49,0.00019452,2]
[346307021,1734882644808,-500.0,0.00019452,2]
[346307023,1734882644819,-500.0,0.00019452,2]
[346307025,1734882644829,-1047.25,0.00019452,2]
[346307027,1734882644839,-500.0,0.00019452,2]
[346307029,1734882644848,-592.03,0.00019452,2]
[346307031,1734882644857,-500.0,0.00019452,2]
[346307033,1734882644867,-500.0,0.00019452,2]
[346307035,1734882644877,-500.0,0.00019452,2]
[346307037,1734882644887,-1014.19,0.00019452,2]
[346307039,1734882644896,-500.0,0.00019452,2]
[346307041,1734882644909,-500.0,0.00019452,2]
[346307043,1734882644918,-500.0,0.00019452,2]
[346307045,1734882644928,-500.0,0.00019452,2]
[346307047,1734882644937,-500.0,0.00019452,2]
[346307049,1734882644947,-557.86,0.00019452,2]
[346307051,1734882644956,-500.0,0.00019452,2]
[346307052,1734882644965,-500.0,0.00019452,2]
[346307055,1734882644975,-500.0,0.00019452,2]
[346307057,1734882644984,-500.0,0.00019452,2]
[346307058,1734882644994,-500.0,0.00019452,2]
[346307061,1734882645003,-500.0,0.00019452,2]
[346307062,1734882645012,-500.0,0.00019452,2]
[346307064,1734882645021,-500.0,0.00019452,2]
[346307066,1734882645030,-500.0,0.00019452,2]
[346307068,1734882645040,-500.0,0.00019452,2]
[346307070,1734882645049,-814.44,0.00019452,2]
[346307072,1734882645058,-790.54,0.00019452,2]
[346307075,1734882645070,-500.0,0.00019452,2]
[346307077,1734882645080,-500.0,0.00019452,2]
[346307079,1734882645089,-500.0,0.00019452,2]
[346307080,1734882645098,-500.0,0.00019452,2]
[346307082,1734882645109,-502.09,0.00019452,2]
[346307084,1734882645120,-500.0,0.00019452,2]
[346307087,1734882645130,-500.0,0.00019452,2]
[346307088,1734882645139,-500.0,0.00019452,2]
[346307091,1734882645148,-500.0,0.00019452,2]
[346307092,1734882645159,-500.0,0.00019452,2]
[346307094,1734882645168,-500.0,0.00019452,2]
[346307096,1734882645177,-500.0,0.00019452,2]
[346307099,1734882645188,-500.0,0.00019452,2]
[346307100,1734882645197,-500.0,0.00019452,2]
[346307102,1734882645207,-500.0,0.00019452,2]
[346307104,1734882645217,-452.41,0.00019452,2]
[346307106,1734882645226,-500.0,0.00019452,2]
[346307108,1734882645235,-500.0,0.00019452,2]
[346307110,1734882645245,-500.0,0.00019452,2]
[346307112,1734882645254,-500.0,0.00019452,2]
[346307114,1734882645263,-1888.75,0.00019452,2]
[346307116,1734882645272,-500.0,0.00019452,2]
[346307118,1734882645281,-500.0,0.00019452,2]
[346307120,1734882645290,-500.0,0.00019452,2]
[346307122,1734882645299,-500.0,0.00019452,2]
[346307124,1734882645309,-500.0,0.00019452,2]
[346307127,1734882645321,-2606.18,0.00019452,2]
[346307129,1734882645331,-799.1,0.00019452,2]
[346307132,1734882645340,-500.0,0.00019452,2]
[346307134,1734882645349,-500.0,0.00019452,2]
[346307137,1734882645358,-1980.69,0.00019452,2]
[346307139,1734882645367,-558.21,0.00019452,2]
[346307141,1734882645376,-500.0,0.00019452,2]
[346307143,1734882645385,-500.0,0.00019452,2]
[346307144,1734882645394,-500.0,0.00019452,2]
[346307146,1734882645403,-587.86,0.00019452,2]
[346307148,1734882645412,-500.0,0.00019452,2]
[346307151,1734882645422,-11505.27,0.00019452,2]
[346307152,1734882645431,-571.35,0.00019452,2]
[346307154,1734882645440,-854.23,0.00019452,2]
[346307156,1734882645449,-1134.72,0.00019452,2]
[346307158,1734882645459,-500.0,0.00019452,2]
[346307160,1734882645468,-571.12,0.00019452,2]
[346307162,1734882645477,-979.98,0.00019452,2]
[346307164,1734882645486,-500.0,0.00019452,2]
[346307166,1734882645495,-406.08,0.00019452,2]
[346307169,1734882645504,-500.0,0.00019452,2]
[346307171,1734882645514,-1000.0,0.00019452,2]
[346307173,1734882645523,-1056.2,0.00019452,2]
[346307174,1734882645532,-2730.53,0.00019452,2]
[346307176,1734882645541,-1282.97,0.00019452,2]
[346307178,1734882645551,-554.76,0.00019452,2]
[346307180,1734882645560,-500.0,0.00019452,2]
[346307182,1734882645570,-617.69,0.00019452,2]
[346307184,1734882645579,-890.57,0.00019452,2]
[346307186,1734882645588,-2487.57,0.00019452,2]
[346307188,1734882645597,-635.51,0.00019452,2]
[346307190,1734882645606,-500.0,0.00019452,2]
[346307192,1734882645616,-515.08,0.00019452,2]
[346307194,1734882645625,-3077.0,0.00019452,2]
[346307196,1734882645634,-500.0,0.00019452,2]
[346307198,1734882645643,-738.32,0.00019452,2]
[346307200,1734882645652,-745.08,0.00019452,2]